Workbook

Sheet Весільний бюджет
B2: ЛЕСЯ + ДМИТРО ЗВ’ЯЖИ ВУЗОЛ
B5: КАТЕГОРІЯ | C5: ОРІЄНТОВНІ ВИТРАТИ | D5: ФАКТИЧНІ ВИТРАТИ | E5: ВІДХИЛЕННЯ | F5: БЮДЖЕТ % | J5: Невідсортоване | K5: Орієнтовна вартість | L5: Фактична вартість | M5: Орієнтовна вартість – вартість позиції | N5: Позиція | O5: № | P5: Відсортовано
B6: =P6 -> Банкет | C6: =VLOOKUP(TBL_Підсумок[[#This Row],[КАТЕГОРІЯ]],TBL_RankingData,2,FALSE) -> 14,500₴ | D6: =IF(VLOOKUP(TBL_Підсумок[[#This Row],[КАТЕГОРІЯ]],TBL_RankingData,3,FALSE)=0,"",VLOOKUP(TBL_Підсумок[[#This Row],[КАТЕГОРІЯ]],TBL_RankingData,3,FALSE)) -> 12,800₴ | E6: =IF(OR(TBL_Підсумок[[#This Row],[ОРІЄНТОВНІ ВИТРАТИ]]="",TBL_Підсумок[[#This Row],[ФАКТИЧНІ ВИТРАТИ]]=""),"",TBL_Підсумок[[#This Row],[ОРІЄНТОВНІ ВИТРАТИ]]-TBL_Підсумок[[#This Row],[ФАКТИЧНІ ВИТРАТИ]]) -> 1,700₴ | F6: =TBL_Підсумок[[#This Row],[ОРІЄНТОВНІ ВИТРАТИ]]/SUM(TBL_Підсумок[ОРІЄНТОВНІ ВИТРАТИ]) -> 48.7% | J6: Банкет | K6: =TBL_Банкет[[#Totals],[ОРІЄНТОВНО]] -> 14500 | L6: =TBL_Банкет[[#Totals],[ФАКТИЧНО]] -> 12800 | M6: =K6-O6/100 -> 14499.99 | N6: =_xlfn.RANK.AVG(M6,$M$6:$M$15) -> 1 | O6: 1 | P6: =INDEX(TBL_RankingData,MATCH(O6,$N$6:$N$15,0),1) -> Банкет
B7: =P7 -> Одяг | C7: =VLOOKUP(TBL_Підсумок[[#This Row],[КАТЕГОРІЯ]],TBL_RankingData,2,FALSE) -> 4,000₴ | D7: =IF(VLOOKUP(TBL_Підсумок[[#This Row],[КАТЕГОРІЯ]],TBL_RankingData,3,FALSE)=0,"",VLOOKUP(TBL_Підсумок[[#This Row],[КАТЕГОРІЯ]],TBL_RankingData,3,FALSE)) -> 2,900₴ | E7: =IF(OR(TBL_Підсумок[[#This Row],[ОРІЄНТОВНІ ВИТРАТИ]]="",TBL_Підсумок[[#This Row],[ФАКТИЧНІ ВИТРАТИ]]=""),"",TBL_Підсумок[[#This Row],[ОРІЄНТОВНІ ВИТРАТИ]]-TBL_Підсумок[[#This Row],[ФАКТИЧНІ ВИТРАТИ]]) -> 1,100₴ | F7: =TBL_Підсумок[[#This Row],[ОРІЄНТОВНІ ВИТРАТИ]]/SUM(TBL_Підсумок[ОРІЄНТОВНІ ВИТРАТИ]) -> 13.4% | J7: Одяг | K7: =TBL_Одяг[[#Totals],[ОРІЄНТОВНО]] -> 4000 | L7: =TBL_Одяг[[#Totals],[ФАКТИЧНО]] -> 2900 | M7: =K7-O7/100 -> 3999.98 | N7: 2 | O7: 2 | P7: Одяг
B8: Квіти й прикраси | C8: =VLOOKUP(TBL_Підсумок[[#This Row],[КАТЕГОРІЯ]],TBL_RankingData,2,FALSE) -> 3,000₴ | D8: =IF(VLOOKUP(TBL_Підсумок[[#This Row],[КАТЕГОРІЯ]],TBL_RankingData,3,FALSE)=0,"",VLOOKUP(TBL_Підсумок[[#This Row],[КАТЕГОРІЯ]],TBL_RankingData,3,FALSE)) ->  | E8: =IF(OR(TBL_Підсумок[[#This Row],[ОРІЄНТОВНІ ВИТРАТИ]]="",TBL_Підсумок[[#This Row],[ФАКТИЧНІ ВИТРАТИ]]=""),"",TBL_Підсумок[[#This Row],[ОРІЄНТОВНІ ВИТРАТИ]]-TBL_Підсумок[[#This Row],[ФАКТИЧНІ ВИТРАТИ]]) ->  | F8: =TBL_Підсумок[[#This Row],[ОРІЄНТОВНІ ВИТРАТИ]]/SUM(TBL_Підсумок[ОРІЄНТОВНІ ВИТРАТИ]) -> 10.1% | J8: Квіти й прикраси | K8: =TBL_КвітиЙДекор[[#Totals],[ОРІЄНТОВНО]] -> 3000 | L8: =TBL_КвітиЙДекор[[#Totals],[ФАКТИЧНО]] -> 0 | M8: 2999.97 | N8: 3 | O8: 3 | P8: Квіти й прикраси
B9: Фото- та відеозйомка | C9: =VLOOKUP(TBL_Підсумок[[#This Row],[КАТЕГОРІЯ]],TBL_RankingData,2,FALSE) -> 2,500₴ | D9: =IF(VLOOKUP(TBL_Підсумок[[#This Row],[КАТЕГОРІЯ]],TBL_RankingData,3,FALSE)=0,"",VLOOKUP(TBL_Підсумок[[#This Row],[КАТЕГОРІЯ]],TBL_RankingData,3,FALSE)) ->  | E9: =IF(OR(TBL_Підсумок[[#This Row],[ОРІЄНТОВНІ ВИТРАТИ]]="",TBL_Підсумок[[#This Row],[ФАКТИЧНІ ВИТРАТИ]]=""),"",TBL_Підсумок[[#This Row],[ОРІЄНТОВНІ ВИТРАТИ]]-TBL_Підсумок[[#This Row],[ФАКТИЧНІ ВИТРАТИ]]) ->  | F9: =TBL_Підсумок[[#This Row],[ОРІЄНТОВНІ ВИТРАТИ]]/SUM(TBL_Підсумок[ОРІЄНТОВНІ ВИТРАТИ]) -> 8.4% | J9: Музика | K9: =TBL_Музика[[#Totals],[ОРІЄНТОВНО]] -> 1800 | L9: =TBL_Музика[[#Totals],[ФАКТИЧНО]] -> 0 | M9: 1799.96 | N9: 5 | O9: 4 | P9: Фото- та відеозйомка
B10: Музика | C10: =VLOOKUP(TBL_Підсумок[[#This Row],[КАТЕГОРІЯ]],TBL_RankingData,2,FALSE) -> 1,800₴ | D10: =IF(VLOOKUP(TBL_Підсумок[[#This Row],[КАТЕГОРІЯ]],TBL_RankingData,3,FALSE)=0,"",VLOOKUP(TBL_Підсумок[[#This Row],[КАТЕГОРІЯ]],TBL_RankingData,3,FALSE)) ->  | E10: =IF(OR(TBL_Підсумок[[#This Row],[ОРІЄНТОВНІ ВИТРАТИ]]="",TBL_Підсумок[[#This Row],[ФАКТИЧНІ ВИТРАТИ]]=""),"",TBL_Підсумок[[#This Row],[ОРІЄНТОВНІ ВИТРАТИ]]-TBL_Підсумок[[#This Row],[ФАКТИЧНІ ВИТРАТИ]]) ->  | F10: =TBL_Підсумок[[#This Row],[ОРІЄНТОВНІ ВИТРАТИ]]/SUM(TBL_Підсумок[ОРІЄНТОВНІ ВИТРАТИ]) -> 6.1% | J10: Фото- та відеозйомка | K10: =TBL_ФотоТаВідео[[#Totals],[ОРІЄНТОВНО]] -> 2500 | L10: =TBL_ФотоТаВідео[[#Totals],[ФАКТИЧНО]] -> 0 | M10: 2499.95 | N10: 4 | O10: 5 | P10: Музика
B11: Сувеніри та подарунки | C11: =VLOOKUP(TBL_Підсумок[[#This Row],[КАТЕГОРІЯ]],TBL_RankingData,2,FALSE) -> 1,100₴ | D11: =IF(VLOOKUP(TBL_Підсумок[[#This Row],[КАТЕГОРІЯ]],TBL_RankingData,3,FALSE)=0,"",VLOOKUP(TBL_Підсумок[[#This Row],[КАТЕГОРІЯ]],TBL_RankingData,3,FALSE)) ->  | E11: =IF(OR(TBL_Підсумок[[#This Row],[ОРІЄНТОВНІ ВИТРАТИ]]="",TBL_Підсумок[[#This Row],[ФАКТИЧНІ ВИТРАТИ]]=""),"",TBL_Підсумок[[#This Row],[ОРІЄНТОВНІ ВИТРАТИ]]-TBL_Підсумок[[#This Row],[ФАКТИЧНІ ВИТРАТИ]]) ->  | F11: =TBL_Підсумок[[#This Row],[ОРІЄНТОВНІ ВИТРАТИ]]/SUM(TBL_Підсумок[ОРІЄНТОВНІ ВИТРАТИ]) -> 3.7% | J11: Сувеніри та подарунки | K11: =TBL_СувеніриТаПодарунки[[#Totals],[ОРІЄНТОВНО]] -> 1100 | L11: =TBL_СувеніриТаПодарунки[[#Totals],[ФАКТИЧНО]] -> 0 | M11: 1099.94 | N11: 6 | O11: 6 | P11: Сувеніри та подарунки
B12: =P12 -> Весільні обручки | C12: =VLOOKUP(TBL_Підсумок[[#This Row],[КАТЕГОРІЯ]],TBL_RankingData,2,FALSE) -> 1,100₴ | D12: =IF(VLOOKUP(TBL_Підсумок[[#This Row],[КАТЕГОРІЯ]],TBL_RankingData,3,FALSE)=0,"",VLOOKUP(TBL_Підсумок[[#This Row],[КАТЕГОРІЯ]],TBL_RankingData,3,FALSE)) ->  | E12: =IF(OR(TBL_Підсумок[[#This Row],[ОРІЄНТОВНІ ВИТРАТИ]]="",TBL_Підсумок[[#This Row],[ФАКТИЧНІ ВИТРАТИ]]=""),"",TBL_Підсумок[[#This Row],[ОРІЄНТОВНІ ВИТРАТИ]]-TBL_Підсумок[[#This Row],[ФАКТИЧНІ ВИТРАТИ]]) ->  | F12: =TBL_Підсумок[[#This Row],[ОРІЄНТОВНІ ВИТРАТИ]]/SUM(TBL_Підсумок[ОРІЄНТОВНІ ВИТРАТИ]) -> 3.7% | J12: Церемонія | K12: =TBL_Церемонія[[#Totals],[ОРІЄНТОВНО]] -> 800 | L12: =TBL_Церемонія[[#Totals],[ФАКТИЧНО]] -> 0 | M12: 799.93 | N12: 8 | O12: 7 | P12: Весільні обручки
B13: Церемонія | C13: =VLOOKUP(TBL_Підсумок[[#This Row],[КАТЕГОРІЯ]],TBL_RankingData,2,FALSE) -> 800₴ | D13: =IF(VLOOKUP(TBL_Підсумок[[#This Row],[КАТЕГОРІЯ]],TBL_RankingData,3,FALSE)=0,"",VLOOKUP(TBL_Підсумок[[#This Row],[КАТЕГОРІЯ]],TBL_RankingData,3,FALSE)) ->  | E13: =IF(OR(TBL_Підсумок[[#This Row],[ОРІЄНТОВНІ ВИТРАТИ]]="",TBL_Підсумок[[#This Row],[ФАКТИЧНІ ВИТРАТИ]]=""),"",TBL_Підсумок[[#This Row],[ОРІЄНТОВНІ ВИТРАТИ]]-TBL_Підсумок[[#This Row],[ФАКТИЧНІ ВИТРАТИ]]) ->  | F13: =TBL_Підсумок[[#This Row],[ОРІЄНТОВНІ ВИТРАТИ]]/SUM(TBL_Підсумок[ОРІЄНТОВНІ ВИТРАТИ]) -> 2.7% | J13: Канцтовари | K13: =TBL_Канцтовари[[#Totals],[ОРІЄНТОВНО]] -> 500 | L13: =TBL_Канцтовари[[#Totals],[ФАКТИЧНО]] -> 0 | M13: 499.92 | N13: 9 | O13: 8 | P13: Церемонія
B14: Канцтовари | C14: =VLOOKUP(TBL_Підсумок[[#This Row],[КАТЕГОРІЯ]],TBL_RankingData,2,FALSE) -> 500₴ | D14: =IF(VLOOKUP(TBL_Підсумок[[#This Row],[КАТЕГОРІЯ]],TBL_RankingData,3,FALSE)=0,"",VLOOKUP(TBL_Підсумок[[#This Row],[КАТЕГОРІЯ]],TBL_RankingData,3,FALSE)) ->  | E14: =IF(OR(TBL_Підсумок[[#This Row],[ОРІЄНТОВНІ ВИТРАТИ]]="",TBL_Підсумок[[#This Row],[ФАКТИЧНІ ВИТРАТИ]]=""),"",TBL_Підсумок[[#This Row],[ОРІЄНТОВНІ ВИТРАТИ]]-TBL_Підсумок[[#This Row],[ФАКТИЧНІ ВИТРАТИ]]) ->  | F14: =TBL_Підсумок[[#This Row],[ОРІЄНТОВНІ ВИТРАТИ]]/SUM(TBL_Підсумок[ОРІЄНТОВНІ ВИТРАТИ]) -> 1.7% | J14: Весільні обручки | K14: =TBL_ВесільніОбручки[[#Totals],[ОРІЄНТОВНО]] -> 1100 | L14: =TBL_ВесільніОбручки[[#Totals],[ФАКТИЧНО]] -> 0 | M14: 1099.91 | N14: 7 | O14: 9 | P14: Канцтовари
B15: Транспорт | C15: =VLOOKUP(TBL_Підсумок[[#This Row],[КАТЕГОРІЯ]],TBL_RankingData,2,FALSE) -> 450₴ | D15: =IF(VLOOKUP(TBL_Підсумок[[#This Row],[КАТЕГОРІЯ]],TBL_RankingData,3,FALSE)=0,"",VLOOKUP(TBL_Підсумок[[#This Row],[КАТЕГОРІЯ]],TBL_RankingData,3,FALSE)) ->  | E15: =IF(OR(TBL_Підсумок[[#This Row],[ОРІЄНТОВНІ ВИТРАТИ]]="",TBL_Підсумок[[#This Row],[ФАКТИЧНІ ВИТРАТИ]]=""),"",TBL_Підсумок[[#This Row],[ОРІЄНТОВНІ ВИТРАТИ]]-TBL_Підсумок[[#This Row],[ФАКТИЧНІ ВИТРАТИ]]) ->  | F15: =TBL_Підсумок[[#This Row],[ОРІЄНТОВНІ ВИТРАТИ]]/SUM(TBL_Підсумок[ОРІЄНТОВНІ ВИТРАТИ]) -> 1.5% | J15: Транспорт | K15: =TBL_Транспорт[[#Totals],[ОРІЄНТОВНО]] -> 450 | L15: =TBL_Транспорт[[#Totals],[ФАКТИЧНО]] -> 0 | M15: 449.9 | N15: 10 | O15: 10 | P15: Транспорт
B16: Підсумок | C16: =SUBTOTAL(109,TBL_Підсумок[ОРІЄНТОВНІ ВИТРАТИ]) -> 29,750₴ | D16: =SUBTOTAL(109,TBL_Підсумок[ФАКТИЧНІ ВИТРАТИ]) -> 15,700₴ | E16: =TBL_Підсумок[[#Totals],[ОРІЄНТОВНІ ВИТРАТИ]]-TBL_Підсумок[[#Totals],[ФАКТИЧНІ ВИТРАТИ]] -> 14,050₴ | F16: =SUBTOTAL(109,TBL_Підсумок[БЮДЖЕТ %]) -> 100%

Sheet Відомості про бюджет
B2: ВІДОМОСТІ ПРО БЮДЖЕТ
B4: БАНКЕТ | C4: ОРІЄНТОВНО | D4: ФАКТИЧНО | E4: ВІДХИЛЕННЯ
B5: Місце проведення й оренда | C5: 8,000.00₴ | D5: 7,800.00₴ | E5: =IF(OR(TBL_Банкет[[#This Row],[ОРІЄНТОВНО]]="",TBL_Банкет[[#This Row],[ФАКТИЧНО]]=""),"",TBL_Банкет[[#This Row],[ОРІЄНТОВНО]]-TBL_Банкет[[#This Row],[ФАКТИЧНО]]) -> 200.00₴
B6: Їжа й обслуговування | C6: 4,000.00₴ | D6: 4,200.00₴ | E6: =IF(OR(TBL_Банкет[[#This Row],[ОРІЄНТОВНО]]="",TBL_Банкет[[#This Row],[ФАКТИЧНО]]=""),"",TBL_Банкет[[#This Row],[ОРІЄНТОВНО]]-TBL_Банкет[[#This Row],[ФАКТИЧНО]]) -> -200.00₴
B7: Напої | C7: 1,000.00₴ | D7: 800.00₴ | E7: =IF(OR(TBL_Банкет[[#This Row],[ОРІЄНТОВНО]]="",TBL_Банкет[[#This Row],[ФАКТИЧНО]]=""),"",TBL_Банкет[[#This Row],[ОРІЄНТОВНО]]-TBL_Банкет[[#This Row],[ФАКТИЧНО]]) -> 200.00₴
B8: Торт | C8: 1,000.00₴ | E8: =IF(OR(TBL_Банкет[[#This Row],[ОРІЄНТОВНО]]="",TBL_Банкет[[#This Row],[ФАКТИЧНО]]=""),"",TBL_Банкет[[#This Row],[ОРІЄНТОВНО]]-TBL_Банкет[[#This Row],[ФАКТИЧНО]]) -> 
B9: Інші витрати | C9: 500.00₴ | E9: =IF(OR(TBL_Банкет[[#This Row],[ОРІЄНТОВНО]]="",TBL_Банкет[[#This Row],[ФАКТИЧНО]]=""),"",TBL_Банкет[[#This Row],[ОРІЄНТОВНО]]-TBL_Банкет[[#This Row],[ФАКТИЧНО]]) -> 
B10: ЗАГАЛЬНІ ВИТРАТИ НА БАНКЕТ | C10: =SUBTOTAL(109,TBL_Банкет[ОРІЄНТОВНО]) -> 14,500.00₴ | D10: =SUBTOTAL(109,TBL_Банкет[ФАКТИЧНО]) -> 12,800.00₴ | E10: =TBL_Банкет[[#Totals],[ОРІЄНТОВНО]]-TBL_Банкет[[#Totals],[ФАКТИЧНО]] -> 1,700.00₴
B13: ОДЯГ | C13: ОРІЄНТОВНО | D13: ФАКТИЧНО | E13: ВІДХИЛЕННЯ
B14: Смокінг, костюм, сукня | C14: 3,000.00₴ | D14: 2,900.00₴ | E14: =IF(OR(TBL_Одяг[[#This Row],[ОРІЄНТОВНО]]="",TBL_Одяг[[#This Row],[ФАКТИЧНО]]=""),"",TBL_Одяг[[#This Row],[ОРІЄНТОВНО]]-TBL_Одяг[[#This Row],[ФАКТИЧНО]]) -> 100.00₴
B15: Зміни | C15: 100.00₴ | E15: =IF(OR(TBL_Одяг[[#This Row],[ОРІЄНТОВНО]]="",TBL_Одяг[[#This Row],[ФАКТИЧНО]]=""),"",TBL_Одяг[[#This Row],[ОРІЄНТОВНО]]-TBL_Одяг[[#This Row],[ФАКТИЧНО]]) -> 
B16: Фігурки на торт і фата | C16: 200.00₴ | E16: =IF(OR(TBL_Одяг[[#This Row],[ОРІЄНТОВНО]]="",TBL_Одяг[[#This Row],[ФАКТИЧНО]]=""),"",TBL_Одяг[[#This Row],[ОРІЄНТОВНО]]-TBL_Одяг[[#This Row],[ФАКТИЧНО]]) -> 
B17: Аксесуари | C17: 100.00₴ | E17: =IF(OR(TBL_Одяг[[#This Row],[ОРІЄНТОВНО]]="",TBL_Одяг[[#This Row],[ФАКТИЧНО]]=""),"",TBL_Одяг[[#This Row],[ОРІЄНТОВНО]]-TBL_Одяг[[#This Row],[ФАКТИЧНО]]) -> 
B18: Зачіска та макіяж | C18: 500.00₴ | E18: =IF(OR(TBL_Одяг[[#This Row],[ОРІЄНТОВНО]]="",TBL_Одяг[[#This Row],[ФАКТИЧНО]]=""),"",TBL_Одяг[[#This Row],[ОРІЄНТОВНО]]-TBL_Одяг[[#This Row],[ФАКТИЧНО]]) -> 
B19: Інші витрати | C19: 100.00₴ | E19: =IF(OR(TBL_Одяг[[#This Row],[ОРІЄНТОВНО]]="",TBL_Одяг[[#This Row],[ФАКТИЧНО]]=""),"",TBL_Одяг[[#This Row],[ОРІЄНТОВНО]]-TBL_Одяг[[#This Row],[ФАКТИЧНО]]) -> 
B20: ЗАГАЛЬНІ ВИТРАТИ НА ОДЯГ | C20: =SUBTOTAL(109,TBL_Одяг[ОРІЄНТОВНО]) -> 4,000.00₴ | D20: =SUBTOTAL(109,TBL_Одяг[ФАКТИЧНО]) -> 2,900.00₴ | E20: =TBL_Одяг[[#Totals],[ОРІЄНТОВНО]]-TBL_Одяг[[#Totals],[ФАКТИЧНО]] -> 1,100.00₴
B23: КВІТИ ТА ПРИКРАСИ | C23: ОРІЄНТОВНО | D23: ФАКТИЧНО | E23: ВІДХИЛЕННЯ
B24: Квіткові композиції для церемонії | C24: 1,000.00₴ | E24: =IF(OR(TBL_КвітиЙДекор[[#This Row],[ОРІЄНТОВНО]]="",TBL_КвітиЙДекор[[#This Row],[ФАКТИЧНО]]=""),"",TBL_КвітиЙДекор[[#This Row],[ОРІЄНТОВНО]]-TBL_КвітиЙДекор[[#This Row],[ФАКТИЧНО]]) -> 
B25: Кошик і квіти для дівчаток, які розсипають пелюстки | C25: 500.00₴ | E25: =IF(OR(TBL_КвітиЙДекор[[#This Row],[ОРІЄНТОВНО]]="",TBL_КвітиЙДекор[[#This Row],[ФАКТИЧНО]]=""),"",TBL_КвітиЙДекор[[#This Row],[ОРІЄНТОВНО]]-TBL_КвітиЙДекор[[#This Row],[ФАКТИЧНО]]) -> 
B26: Подушка з обручками | C26: 100.00₴ | E26: =IF(OR(TBL_КвітиЙДекор[[#This Row],[ОРІЄНТОВНО]]="",TBL_КвітиЙДекор[[#This Row],[ФАКТИЧНО]]=""),"",TBL_КвітиЙДекор[[#This Row],[ОРІЄНТОВНО]]-TBL_КвітиЙДекор[[#This Row],[ФАКТИЧНО]]) -> 
B27: Букети | C27: 500.00₴ | E27: =IF(OR(TBL_КвітиЙДекор[[#This Row],[ОРІЄНТОВНО]]="",TBL_КвітиЙДекор[[#This Row],[ФАКТИЧНО]]=""),"",TBL_КвітиЙДекор[[#This Row],[ОРІЄНТОВНО]]-TBL_КвітиЙДекор[[#This Row],[ФАКТИЧНО]]) -> 
B28: Бутоньєрки | C28: 100.00₴ | E28: =IF(OR(TBL_КвітиЙДекор[[#This Row],[ОРІЄНТОВНО]]="",TBL_КвітиЙДекор[[#This Row],[ФАКТИЧНО]]=""),"",TBL_КвітиЙДекор[[#This Row],[ОРІЄНТОВНО]]-TBL_КвітиЙДекор[[#This Row],[ФАКТИЧНО]]) -> 
B29: Браслети | C29: 200.00₴ | E29: =IF(OR(TBL_КвітиЙДекор[[#This Row],[ОРІЄНТОВНО]]="",TBL_КвітиЙДекор[[#This Row],[ФАКТИЧНО]]=""),"",TBL_КвітиЙДекор[[#This Row],[ОРІЄНТОВНО]]-TBL_КвітиЙДекор[[#This Row],[ФАКТИЧНО]]) -> 
B30: Прикраси для місця проведення | C30: 300.00₴ | E30: =IF(OR(TBL_КвітиЙДекор[[#This Row],[ОРІЄНТОВНО]]="",TBL_КвітиЙДекор[[#This Row],[ФАКТИЧНО]]=""),"",TBL_КвітиЙДекор[[#This Row],[ОРІЄНТОВНО]]-TBL_КвітиЙДекор[[#This Row],[ФАКТИЧНО]]) -> 
B31: Освітлення | C31: 200.00₴ | E31: =IF(OR(TBL_КвітиЙДекор[[#This Row],[ОРІЄНТОВНО]]="",TBL_КвітиЙДекор[[#This Row],[ФАКТИЧНО]]=""),"",TBL_КвітиЙДекор[[#This Row],[ОРІЄНТОВНО]]-TBL_КвітиЙДекор[[#This Row],[ФАКТИЧНО]]) -> 
B32: Інші витрати | C32: 100.00₴ | E32: =IF(OR(TBL_КвітиЙДекор[[#This Row],[ОРІЄНТОВНО]]="",TBL_КвітиЙДекор[[#This Row],[ФАКТИЧНО]]=""),"",TBL_КвітиЙДекор[[#This Row],[ОРІЄНТОВНО]]-TBL_КвітиЙДекор[[#This Row],[ФАКТИЧНО]]) -> 
B33: ЗАГАЛЬНІ ВИТРАТИ НА КВІТИ ТА ПРИКРАСИ | C33: =SUBTOTAL(109,TBL_КвітиЙДекор[ОРІЄНТОВНО]) -> 3,000.00₴ | D33: =SUBTOTAL(109,TBL_КвітиЙДекор[ФАКТИЧНО]) -> 0.00₴ | E33: =TBL_КвітиЙДекор[[#Totals],[ОРІЄНТОВНО]]-TBL_КвітиЙДекор[[#Totals],[ФАКТИЧНО]] -> 3,000.00₴
B36: МУЗИКА | C36: ОРІЄНТОВНО | D36: ФАКТИЧНО | E36: ВІДХИЛЕННЯ
B37: Музиканти на церемонію | C37: 700.00₴ | E37: =IF(OR(TBL_Музика[[#This Row],[ОРІЄНТОВНО]]="",TBL_Музика[[#This Row],[ФАКТИЧНО]]=""),"",TBL_Музика[[#This Row],[ОРІЄНТОВНО]]-TBL_Музика[[#This Row],[ФАКТИЧНО]]) -> 
B38: Музиканти для перерви на коктейлі | C38: 300.00₴ | E38: =IF(OR(TBL_Музика[[#This Row],[ОРІЄНТОВНО]]="",TBL_Музика[[#This Row],[ФАКТИЧНО]]=""),"",TBL_Музика[[#This Row],[ОРІЄНТОВНО]]-TBL_Музика[[#This Row],[ФАКТИЧНО]]) -> 
B39: Музичний гурт, ді-джей або розважальна програма | C39: 200.00₴ | E39: =IF(OR(TBL_Музика[[#This Row],[ОРІЄНТОВНО]]="",TBL_Музика[[#This Row],[ФАКТИЧНО]]=""),"",TBL_Музика[[#This Row],[ОРІЄНТОВНО]]-TBL_Музика[[#This Row],[ФАКТИЧНО]]) -> 
B40: Прокат звукового обладнання або танц-полу | C40: 400.00₴ | E40: =IF(OR(TBL_Музика[[#This Row],[ОРІЄНТОВНО]]="",TBL_Музика[[#This Row],[ФАКТИЧНО]]=""),"",TBL_Музика[[#This Row],[ОРІЄНТОВНО]]-TBL_Музика[[#This Row],[ФАКТИЧНО]]) -> 
B41: Інші витрати | C41: 200.00₴ | E41: =IF(OR(TBL_Музика[[#This Row],[ОРІЄНТОВНО]]="",TBL_Музика[[#This Row],[ФАКТИЧНО]]=""),"",TBL_Музика[[#This Row],[ОРІЄНТОВНО]]-TBL_Музика[[#This Row],[ФАКТИЧНО]]) -> 
B42: ЗАГАЛЬНІ ВИТРАТИ НА МУЗИКУ | C42: =SUBTOTAL(109,TBL_Музика[ОРІЄНТОВНО]) -> 1,800.00₴ | D42: =SUBTOTAL(109,TBL_Музика[ФАКТИЧНО]) -> 0.00₴ | E42: =TBL_Музика[[#Totals],[ОРІЄНТОВНО]]-TBL_Музика[[#Totals],[ФАКТИЧНО]] -> 1,800.00₴
B45: ФОТОЗЙОМКА І ВІДЕО | C45: ОРІЄНТОВНО | D45: ФАКТИЧНО | E45: ВІДХИЛЕННЯ
B46: Фотографії | C46: 1,000.00₴ | E46: =IF(OR(TBL_ФотоТаВідео[[#This Row],[ОРІЄНТОВНО]]="",TBL_ФотоТаВідео[[#This Row],[ФАКТИЧНО]]=""),"",TBL_ФотоТаВідео[[#This Row],[ОРІЄНТОВНО]]-TBL_ФотоТаВідео[[#This Row],[ФАКТИЧНО]]) -> 
B47: Відеозйомка | C47: 800.00₴ | E47: =IF(OR(TBL_ФотоТаВідео[[#This Row],[ОРІЄНТОВНО]]="",TBL_ФотоТаВідео[[#This Row],[ФАКТИЧНО]]=""),"",TBL_ФотоТаВідео[[#This Row],[ОРІЄНТОВНО]]-TBL_ФотоТаВідео[[#This Row],[ФАКТИЧНО]]) -> 
B48: Додаткові роздруківки й альбоми | C48: 500.00₴ | E48: =IF(OR(TBL_ФотоТаВідео[[#This Row],[ОРІЄНТОВНО]]="",TBL_ФотоТаВідео[[#This Row],[ФАКТИЧНО]]=""),"",TBL_ФотоТаВідео[[#This Row],[ОРІЄНТОВНО]]-TBL_ФотоТаВідео[[#This Row],[ФАКТИЧНО]]) -> 
B49: Інші витрати | C49: 200.00₴ | E49: =IF(OR(TBL_ФотоТаВідео[[#This Row],[ОРІЄНТОВНО]]="",TBL_ФотоТаВідео[[#This Row],[ФАКТИЧНО]]=""),"",TBL_ФотоТаВідео[[#This Row],[ОРІЄНТОВНО]]-TBL_ФотоТаВідео[[#This Row],[ФАКТИЧНО]]) -> 
B50: ЗАГАЛЬНІ ВИТРАТИ НА ФОТО І ВІДЕО | C50: =SUBTOTAL(109,TBL_ФотоТаВідео[ОРІЄНТОВНО]) -> 2,500.00₴ | D50: =SUBTOTAL(109,TBL_ФотоТаВідео[ФАКТИЧНО]) -> 0.00₴ | E50: =TBL_ФотоТаВідео[[#Totals],[ОРІЄНТОВНО]]-TBL_ФотоТаВідео[[#Totals],[ФАКТИЧНО]] -> 2,500.00₴
B53: СУВЕНІРИ ТА ПОДАРУНКАМИ | C53: ОРІЄНТОВНО | D53: ФАКТИЧНО | E53: ВІДХИЛЕННЯ
B54: Вітальні подарунки | C54: 700.00₴ | E54: =IF(OR(TBL_СувеніриТаПодарунки[[#This Row],[ОРІЄНТОВНО]]="",TBL_СувеніриТаПодарунки[[#This Row],[ФАКТИЧНО]]=""),"",TBL_СувеніриТаПодарунки[[#This Row],[ОРІЄНТОВНО]]-TBL_СувеніриТаПодарунки[[#This Row],[ФАКТИЧНО]]) -> 
B55: Подарунки на вечірку | C55: 200.00₴ | E55: =IF(OR(TBL_СувеніриТаПодарунки[[#This Row],[ОРІЄНТОВНО]]="",TBL_СувеніриТаПодарунки[[#This Row],[ФАКТИЧНО]]=""),"",TBL_СувеніриТаПодарунки[[#This Row],[ОРІЄНТОВНО]]-TBL_СувеніриТаПодарунки[[#This Row],[ФАКТИЧНО]]) -> 
B56: Інші витрати | C56: 200.00₴ | E56: =IF(OR(TBL_СувеніриТаПодарунки[[#This Row],[ОРІЄНТОВНО]]="",TBL_СувеніриТаПодарунки[[#This Row],[ФАКТИЧНО]]=""),"",TBL_СувеніриТаПодарунки[[#This Row],[ОРІЄНТОВНО]]-TBL_СувеніриТаПодарунки[[#This Row],[ФАКТИЧНО]]) -> 
B57: ЗАГАЛЬНІ ВИТРАТИ НА СУВЕНІРИ ТА ПОДАРУНКИ | C57: =SUBTOTAL(109,TBL_СувеніриТаПодарунки[ОРІЄНТОВНО]) -> 1,100.00₴ | D57: =SUBTOTAL(109,TBL_СувеніриТаПодарунки[ФАКТИЧНО]) -> 0.00₴ | E57: =TBL_СувеніриТаПодарунки[[#Totals],[ОРІЄНТОВНО]]-TBL_СувеніриТаПодарунки[[#Totals],[ФАКТИЧНО]] -> 1,100.00₴
B60: ЦЕРЕМОНІЯ | C60: ОРІЄНТОВНО | D60: ФАКТИЧНО | E60: ВІДХИЛЕННЯ
B61: Оренда місця проведення | C61: 500.00₴ | E61: =IF(OR(TBL_Церемонія[[#This Row],[ОРІЄНТОВНО]]="",TBL_Церемонія[[#This Row],[ФАКТИЧНО]]=""),"",TBL_Церемонія[[#This Row],[ОРІЄНТОВНО]]-TBL_Церемонія[[#This Row],[ФАКТИЧНО]]) -> 
B62: Плата офіціантам або пожертва для церкви | C62: 200.00₴ | E62: =IF(OR(TBL_Церемонія[[#This Row],[ОРІЄНТОВНО]]="",TBL_Церемонія[[#This Row],[ФАКТИЧНО]]=""),"",TBL_Церемонія[[#This Row],[ОРІЄНТОВНО]]-TBL_Церемонія[[#This Row],[ФАКТИЧНО]]) -> 
B63: Інші витрати | C63: 100.00₴ | E63: =IF(OR(TBL_Церемонія[[#This Row],[ОРІЄНТОВНО]]="",TBL_Церемонія[[#This Row],[ФАКТИЧНО]]=""),"",TBL_Церемонія[[#This Row],[ОРІЄНТОВНО]]-TBL_Церемонія[[#This Row],[ФАКТИЧНО]]) -> 
B64: ЗАГАЛЬНІ ВИТРАТИ НА ЦЕРЕМОНІЮ | C64: =SUBTOTAL(109,TBL_Церемонія[ОРІЄНТОВНО]) -> 800.00₴ | D64: =SUBTOTAL(109,TBL_Церемонія[ФАКТИЧНО]) -> 0.00₴ | E64: =TBL_Церемонія[[#Totals],[ОРІЄНТОВНО]]-TBL_Церемонія[[#Totals],[ФАКТИЧНО]] -> 800.00₴
B67: КАНЦТОВАРИ | C67: ОРІЄНТОВНО | D67: ФАКТИЧНО | E67: ВІДХИЛЕННЯ
B68: Листівки-запрошення | C68: 50.00₴ | E68: =IF(OR(TBL_Канцтовари[[#This Row],[ОРІЄНТОВНО]]="",TBL_Канцтовари[[#This Row],[ФАКТИЧНО]]=""),"",TBL_Канцтовари[[#This Row],[ОРІЄНТОВНО]]-TBL_Канцтовари[[#This Row],[ФАКТИЧНО]]) -> 
B69: Запрошення та бланки для відповідей | C69: 100.00₴ | E69: =IF(OR(TBL_Канцтовари[[#This Row],[ОРІЄНТОВНО]]="",TBL_Канцтовари[[#This Row],[ФАКТИЧНО]]=""),"",TBL_Канцтовари[[#This Row],[ОРІЄНТОВНО]]-TBL_Канцтовари[[#This Row],[ФАКТИЧНО]]) -> 
B70: Програми | C70: 50.00₴ | E70: =IF(OR(TBL_Канцтовари[[#This Row],[ОРІЄНТОВНО]]="",TBL_Канцтовари[[#This Row],[ФАКТИЧНО]]=""),"",TBL_Канцтовари[[#This Row],[ОРІЄНТОВНО]]-TBL_Канцтовари[[#This Row],[ФАКТИЧНО]]) -> 
B71: Картки розсадки та карта місця | C71: 50.00₴ | E71: =IF(OR(TBL_Канцтовари[[#This Row],[ОРІЄНТОВНО]]="",TBL_Канцтовари[[#This Row],[ФАКТИЧНО]]=""),"",TBL_Канцтовари[[#This Row],[ОРІЄНТОВНО]]-TBL_Канцтовари[[#This Row],[ФАКТИЧНО]]) -> 
B72: Картки меню | C72: 50.00₴ | E72: =IF(OR(TBL_Канцтовари[[#This Row],[ОРІЄНТОВНО]]="",TBL_Канцтовари[[#This Row],[ФАКТИЧНО]]=""),"",TBL_Канцтовари[[#This Row],[ОРІЄНТОВНО]]-TBL_Канцтовари[[#This Row],[ФАКТИЧНО]]) -> 
B73: Листівки з подякою | C73: 50.00₴ | E73: =IF(OR(TBL_Канцтовари[[#This Row],[ОРІЄНТОВНО]]="",TBL_Канцтовари[[#This Row],[ФАКТИЧНО]]=""),"",TBL_Канцтовари[[#This Row],[ОРІЄНТОВНО]]-TBL_Канцтовари[[#This Row],[ФАКТИЧНО]]) -> 
B74: Поштові витрати | C74: 50.00₴ | E74: =IF(OR(TBL_Канцтовари[[#This Row],[ОРІЄНТОВНО]]="",TBL_Канцтовари[[#This Row],[ФАКТИЧНО]]=""),"",TBL_Канцтовари[[#This Row],[ОРІЄНТОВНО]]-TBL_Канцтовари[[#This Row],[ФАКТИЧНО]]) -> 
B75: Інші витрати | C75: 100.00₴ | E75: =IF(OR(TBL_Канцтовари[[#This Row],[ОРІЄНТОВНО]]="",TBL_Канцтовари[[#This Row],[ФАКТИЧНО]]=""),"",TBL_Канцтовари[[#This Row],[ОРІЄНТОВНО]]-TBL_Канцтовари[[#This Row],[ФАКТИЧНО]]) -> 
B76: ЗАГАЛЬНІ ВИТРАТИ НА КАНЦТОВАРИ | C76: =SUBTOTAL(109,TBL_Канцтовари[ОРІЄНТОВНО]) -> 500.00₴ | D76: =SUBTOTAL(109,TBL_Канцтовари[ФАКТИЧНО]) -> 0.00₴ | E76: =TBL_Канцтовари[[#Totals],[ОРІЄНТОВНО]]-TBL_Канцтовари[[#Totals],[ФАКТИЧНО]] -> 500.00₴
B79: ВЕСІЛЬНІ ОБРУЧКИ | C79: ОРІЄНТОВНО | D79: ФАКТИЧНО | E79: ВІДХИЛЕННЯ
B80: Весільні обручки | C80: 1,000.00₴ | E80: =IF(OR(TBL_ВесільніОбручки[[#This Row],[ОРІЄНТОВНО]]="",TBL_ВесільніОбручки[[#This Row],[ФАКТИЧНО]]=""),"",TBL_ВесільніОбручки[[#This Row],[ОРІЄНТОВНО]]-TBL_ВесільніОбручки[[#This Row],[ФАКТИЧНО]]) -> 
B81: Аксесуари для обручок | C81: 100.00₴ | E81: =IF(OR(TBL_ВесільніОбручки[[#This Row],[ОРІЄНТОВНО]]="",TBL_ВесільніОбручки[[#This Row],[ФАКТИЧНО]]=""),"",TBL_ВесільніОбручки[[#This Row],[ОРІЄНТОВНО]]-TBL_ВесільніОбручки[[#This Row],[ФАКТИЧНО]]) -> 
B82: ЗАГАЛЬНІ ВИТРАТИ НА ОБРУЧКИ | C82: =SUBTOTAL(109,TBL_ВесільніОбручки[ОРІЄНТОВНО]) -> 1,100.00₴ | D82: =SUBTOTAL(109,TBL_ВесільніОбручки[ФАКТИЧНО]) -> 0.00₴ | E82: =TBL_ВесільніОбручки[[#Totals],[ОРІЄНТОВНО]]-TBL_ВесільніОбручки[[#Totals],[ФАКТИЧНО]] -> 1,100.00₴
B85: ТРАНСПОРТ | C85: ОРІЄНТОВНО | D85: ФАКТИЧНО | E85: ВІДХИЛЕННЯ
B86: Прокат основного авто | C86: 100.00₴ | E86: =IF(OR(TBL_Транспорт[[#This Row],[ОРІЄНТОВНО]]="",TBL_Транспорт[[#This Row],[ФАКТИЧНО]]=""),"",TBL_Транспорт[[#This Row],[ОРІЄНТОВНО]]-TBL_Транспорт[[#This Row],[ФАКТИЧНО]]) -> 
B87: Прокат авто для гостей | C87: 100.00₴ | E87: =IF(OR(TBL_Транспорт[[#This Row],[ОРІЄНТОВНО]]="",TBL_Транспорт[[#This Row],[ФАКТИЧНО]]=""),"",TBL_Транспорт[[#This Row],[ОРІЄНТОВНО]]-TBL_Транспорт[[#This Row],[ФАКТИЧНО]]) -> 
B88: Трансфер гостей з інших міст | C88: 100.00₴ | E88: =IF(OR(TBL_Транспорт[[#This Row],[ОРІЄНТОВНО]]="",TBL_Транспорт[[#This Row],[ФАКТИЧНО]]=""),"",TBL_Транспорт[[#This Row],[ОРІЄНТОВНО]]-TBL_Транспорт[[#This Row],[ФАКТИЧНО]]) -> 
B89: Послуги паркувальника | C89: 50.00₴ | E89: =IF(OR(TBL_Транспорт[[#This Row],[ОРІЄНТОВНО]]="",TBL_Транспорт[[#This Row],[ФАКТИЧНО]]=""),"",TBL_Транспорт[[#This Row],[ОРІЄНТОВНО]]-TBL_Транспорт[[#This Row],[ФАКТИЧНО]]) -> 
B90: Інші витрати | C90: 100.00₴ | E90: =IF(OR(TBL_Транспорт[[#This Row],[ОРІЄНТОВНО]]="",TBL_Транспорт[[#This Row],[ФАКТИЧНО]]=""),"",TBL_Транспорт[[#This Row],[ОРІЄНТОВНО]]-TBL_Транспорт[[#This Row],[ФАКТИЧНО]]) -> 
B91: ЗАГАЛЬНІ ВИТРАТИ НА ТРАНСПОРТ І ПЕРЕВЕЗЕННЯ | C91: =SUBTOTAL(109,TBL_Транспорт[ОРІЄНТОВНО]) -> 450.00₴ | D91: =SUBTOTAL(109,TBL_Транспорт[ФАКТИЧНО]) -> 0.00₴ | E91: =TBL_Транспорт[[#Totals],[ОРІЄНТОВНО]]-TBL_Транспорт[[#Totals],[ФАКТИЧНО]] -> 450.00₴
